Cogmind - Beta 16.1 @@@ ROGUE MODE // 2026.04.11 @ 19:48:01 Player: beans Result: Destroyed by Fusion Bomb Trap Performance ------------- Evolutions (2) 1000 Regions Visited (6) 1200 Robots Destroyed (31) 155 Value Destroyed (1136) 1136 Prototype IDs (26) 520 Alien Tech Used (0) 0 Bonus (482) 482 TOTAL SCORE: 4493 Bonus ------- Entered Garrisons 200 Aligned with FarCom 300 Friendly Fire -18 Cogmind --------- Core Integrity 0/550 Matter 158/300 Energy 99/100 System Corruption 0% Temperature Cool (0) Movement Core (100) Ox1 Location -8/Garrison Parts ------- > --- POWER (1) -------- (None) > --- PROPULSION (4) --- Cesium-ion Thruster > --- UTILITY (4) ------ Authchip [R/Combat] Authchip [R/Combat] Authchip [R/Combat] > --- WEAPON (2) ------- Heavy Laser > --- INVENTORY (5) ---- Minigun XL Autogun Array Peak State ------------ > --- POWER ------------ (None) > --- PROPULSION ------- Cesium-ion Thruster > --- UTILITY ---------- Authchip [R/Combat] Authchip [R/Combat] Authchip [R/Combat] Authchip [R/Combat] > --- WEAPON ----------- Minigun > --- INVENTORY -------- Heavy Laser XL Autogun Array [Rating: 26] Favorites ----------- Power Improved Deuterium Engine Engine Improved Deuterium Engine Power Core Light Nuclear Core Propulsion Light Treads Treads Light Treads Flight Unit Cesium-ion Thruster Utility Authchip [R/Combat] Hackware Authchip [R/Combat] Protection Hardened Heavy Armor Plating Weapon Heavy Laser Energy Gun Heavy Laser Energy Cannon EM Pulse Cannon Ballistic Gun Minigun Launcher Grenade Launcher Build | -11 -10 -10 -10 -9 -8 -8 ------- Run | Yrd Mat Min Exi Min Mat Gar Slots Evolved 4 | . . . . . 4 . Power . | . . . . . . . Propulsion 2 | . . . . . 2 . Utility 2 | . . . . . 2 . Weapon . | . . . . . . . Parts Attached 25 | 4 1 . . . 15 5 Power 3 | 1 . . . . 2 . Engine 2 | 1 . . . . 1 . Core 1 | . . . . . 1 . Reactor . | . . . . . . . Propulsion 3 | 2 . . . . 1 . Treads 2 | 2 . . . . . . Leg . | . . . . . . . Wheel . | . . . . . . . Hover . | . . . . . . . Flight 1 | . . . . . 1 . Utility 5 | . . . . . 1 4 Device . | . . . . . . . Storage . | . . . . . . . Processor . | . . . . . . . Hackware 4 | . . . . . . 4 Protection 1 | . . . . . 1 . Artifact . | . . . . . . . Weapon 14 | 1 1 . . . 11 1 Energy Gun 3 | . . . . . 2 1 Energy Cannon 1 | . . . . . 1 . Ballistic Gun 7 | 1 . . . . 6 . Ballistic Cannon . | . . . . . . . Launcher 3 | . 1 . . . 2 . Special Weapon . | . . . . . . . Impact Weapon . | . . . . . . . Slashing Weapon . | . . . . . . . Piercing Weapon . | . . . . . . . Special Melee Weapon . | . . . . . . . Unidentified Prototypes . | . . . . . . . Parts Lost 10 | . . 3 . . 6 1 Power 1 | . . 1 . . . . Propulsion 1 | . . . . . 1 . Utility 2 | . . . . . 1 1 Weapon 6 | . . 2 . . 4 . Highest Loss Streak 3 | . . 2 . . 3 1 To Critical Strikes . | . . . . . . . Average Backups 1 | . . . 2 2 1 1 Power . | . . . . . . . Propulsion . | . . . . . . . Utility . | . . . . . . . Weapon 1 | . . . 1 2 1 1 Tool/Special . | . . . . . . . Unused Backups 3 | . . . 1 . . 2 Power . | . . . . . . . Propulsion 2 | . . . 1 . . 1 Utility . | . . . . . . . Weapon 1 | . . . . . . 1 Tool/Special . | . . . . . . . Average Slot Usage (%) 28 | . 59 23 10 14 24 46 Engine 2 | . 14 . . . 3 . Treads 8 | . 28 14 10 14 4 . Flight 1 | . . . . . . 9 Hackware 5 | . . . . . . 26 Protection 1 | . . . . . 4 . Energy Gun 3 | . . . . . 6 7 Ballistic Gun 2 | . 14 . . . 3 3 Launcher 1 | . 2 7 . . . . Peak Build Rating 26 | 4 5 5 4 4 25 26 Average Rating 10 | 2 4 1 2 4 14 22 On Entrance 4 | . 4 4 . 4 4 13 Avg Prop Armor Cover (%) 10 | . . . . . . 10 Naked Turns 204 | . . 146 57 . 1 . Heaviest Build 38 | 6 9 3 . . 38 7 Greatest Support 40 | 40 40 40 20 20 20 5 Greatest Overweight (x) 9 | . . . . . 9 1 Average Overweight (x) . | . . . . . . . Largest Inventory Capacity 5 | 5 5 5 5 5 5 5 Average Capacity 5 | 5 5 5 5 5 5 5 Most Carried 5 | 2 1 3 5 5 5 5 Average Carried 3 | . . . 4 5 4 4 Final Capacity 5 | 5 5 5 5 5 5 5 Final Carried 5 | . 1 3 5 5 5 5 Class Distribution -------------------- 98% | Mutant Dominant Class ---------------- Mutant | -10/Materials Mutant | -10/Mines Mutant | -10/Exiles Mutant | -9/Mines Mutant | -8/Materials Mutant | -8/Garrison Resources | -11 -10 -10 -10 -9 -8 -8 ----------- Run | Yrd Mat Min Exi Min Mat Gar Matter Collected 738 | 183 . 209 . . 172 174 Remotely . | . . . . . . . Salvage Created 749 | . 11 92 . . 472 174 Parts 37 | . 3 7 . . 24 3 Haulers Intercepted 1 | . . . . . 1 . Recyclers Shooed . | . . . . . . . Parts Field Recycled . | . . . . . . . Retrieved Matter . | . . . . . . . Parts Self-Destructed . | . . . . . . . Prevented . | . . . . . . . Parts Restored . | . . . . . . . Kills | -11 -10 -10 -10 -9 -8 -8 ------- Run | Yrd Mat Min Exi Min Mat Gar Combat Hostiles Destroyed 26 | . 3 7 . . 13 3 Guns 6 | . . . . . 3 3 AOE 19 | . 3 7 . . 9 . Classes Destroyed 6 | . 1 1 . . 4 . Builder 2 | . . . . . 2 . Hauler 1 | . . . . . 1 . Watcher 2 | . . . . . 2 . Swarmer 10 | . 3 3 . . 4 . Grunt 15 | . . 4 . . 8 3 Hunter 1 | . . . . . 1 . Best Kill Streak 15 | . 3 3 . . 15 3 Combat Bots Only 7 | . 3 3 . . 7 3 Max Kills in Single Turn 4 | . 1 2 . . 4 1 Gunslinging . | . . . . . . . Exploded 4 | . 1 2 . . 4 . Melee . | . . . . . . . Uniques/NPCs Destroyed . | . . . . . . . Combat | -11 -10 -10 -10 -9 -8 -8 -------- Run | Yrd Mat Min Exi Min Mat Gar Hostile Shots Fired 238 | . 25 25 . . 178 10 Missed 78 | . 10 6 . . 61 1 Hits 160 | . 15 19 . . 117 9 Projectile 160 | . 15 19 . . 117 9 AOE 3 | . . 3 . . . . Critical Strikes 4 | . 1 . . . 2 1 Damage Taken 2544 | . 176 468 . . 1688 212 Core 788 | . 40 186 . . 449 113 Absorbed by Shields . | . . . . . . . Core Remaining (%) 54 | 100 . . . 9 . . Volleys Fired 80 | 1 10 9 . . 42 18 Largest 2 | 1 1 2 . . 2 2 Hottest 138 | 20 30 50 . . 138 94 Shots Fired 100 | 1 10 11 . . 57 21 Gun 66 | 1 6 2 . . 36 21 Cannon 4 | . . . . . 4 . Launcher 30 | . 4 9 . . 17 . Special . | . . . . . . . Kinetic 42 | 1 6 2 . . 30 3 Thermal 24 | . . . . . 6 18 Explosive 30 | . 4 9 . . 17 . Electromagnetic 4 | . . . . . 4 . Robot Hit Streak 8 | . 3 6 . . 8 7 Robot Miss Streak 5 | . 1 2 . . 5 4 Penetration Max . | . . . . . . . Secondary Targets . | . . . . . . . Shots Hit Robots 53 | . 5 6 . . 31 11 Core Hits 54 | . 4 16 . . 28 6 Critical Kills . | . . . . . . . Critical Parts Destroyed 1 | . 1 . . . . . Critical Strikes 1 | . 1 . . . . . Destroy 1 | . 1 . . . . . Melee Attacks . | . . . . . . . Impact . | . . . . . . . Slashing . | . . . . . . . Piercing . | . . . . . . . Sneak Attacks . | . . . . . . . Combat Hostiles . | . . . . . . . Follow-up Attacks . | . . . . . . . Damage Inflicted 2681 | 8 301 726 . . 1443 203 Guns 620 | 8 29 17 . . 363 203 Cannons 81 | . . . . . 81 . Explosions 1980 | . 272 709 . . 999 . Melee . | . . . . . . . Ramming . | . . . . . . . Kinetic 377 | 8 29 17 . . 289 34 Thermal 337 | . . 94 . . 74 169 Explosive 1886 | . 272 615 . . 999 . Electromagnetic 81 | . . . . . 81 . Impact . | . . . . . . . Slashing . | . . . . . . . Piercing . | . . . . . . . Highest Corruption 1 | . 1 1 1 1 . . Average Corruption 1 | . 1 1 1 1 . . Corruption Purged . | . . . . . . . Corruption Blocked . | . . . . . . . Effects 6 | . 2 1 1 2 . . Message Errors 2 | . . . . 2 . . Matter Fused 2 | . . 1 1 . . . Energy Discharges 1 | . 1 . . . . . Data Loss (minor) 1 | . 1 . . . . . Overload Shots . | . . . . . . . Overflow Damage 92 | . 4 23 . . 65 . Projectiles . | . . . . . . . Explosions 92 | . 4 23 . . 65 . Melee . | . . . . . . . Knockbacks . | . . . . . . . Impact . | . . . . . . . Kinetic . | . . . . . . . Secondary . | . . . . . . . Self-Inflicted Damage 280 | . 23 131 . . 126 . Shots 11 | . 1 6 . . 4 . Rammed . | . . . . . . . Targets Rammed . | . . . . . . . Kicked . | . . . . . . . Crushed . | . . . . . . . Highest Temperature 315 | . . 45 . . 315 130 Average Temperature 75 | . . 31 . . 103 52 Received Heat Transfer 801 | . . 81 . . 621 99 Siege Activations . | . . . . . . . Martial Activations . | . . . . . . . Shielding Activations . | . . . . . . . Robots Disrupted . | . . . . . . . Combat Hostiles . | . . . . . . . Robots Corrupted 1 | . . . . . 1 . Combat Hostiles 1 | . . . . . 1 . Parts Fried . | . . . . . . . Impact Corruptions . | . . . . . . . Robots Melted . | . . . . . . . Combat Hostiles . | . . . . . . . Parts Melted . | . . . . . . . Heat Transferred 581 | . . 100 . . 148 333 Parts Sabotaged . | . . . . . . . Parts Stolen . | . . . . . . . Parts Stripped . | . . . . . . . Power Chain Reactions . | . . . . . . . Alert | -11 -10 -10 -10 -9 -8 -8 ------- Run | Yrd Mat Min Exi Min Mat Gar Maximum Alert Level 1 | . . 1 . . 1 1 Low Security (%) 83 | 100 100 96 . 100 84 55 Level 1 16 | . . 3 . . 15 44 Level 2 . | . . . . . . . Level 3 . | . . . . . . . Level 4 . | . . . . . . . Level 5 . | . . . . . . . High Security . | . . . . . . . Max Security . | . . . . . . . Peak Influence 314 | . 92 204 . . 314 314 Initial 195 | . . 27 . . . 195 Average 100 | . 39 126 . . 48 239 Influence Increases 987 | . 102 282 . . 474 129 Destroy 0b10 Robot/C 520 | . 60 140 . . 260 60 Destroy 0b10 Robot/NC 25 | . . . . . 25 . Destroy Leader 96 | . 10 30 . . 56 . Allied During Kill 7 | . . 7 . . . . Successful Hack 32 | . 14 . . . 4 14 Disable Machine 60 | . . 45 . . 15 . Anti-Garrison Action 50 | . . . . . . 50 Destroy Structure 122 | . 18 45 . . 54 5 Lose Combat Pursuer 75 | . . 15 . . 60 . Influence Decreases 673 | . 30 245 109 . 174 115 Entered New Map 259 | . . 45 109 . . 105 Time Decay 294 | . 30 150 . . 114 . Lost Part 100 | . . 30 . . 60 10 Lost Ally 20 | . . 20 . . . . Squads Dispatched 5 | . 1 . . . 4 . Investigation 2 | . . . . . 2 . Extermination . | . . . . . . . Reinforcement 2 | . 1 . . . 1 . Assault . | . . . . . . . Garrison 1 | . . . . . 1 . Intercept . | . . . . . . . Searches Triggered . | . . . . . . . Construction Impeded . | . . . . . . . Haulers Reinforced . | . . . . . . . Active Scanning Responses . | . . . . . . . Cargo Convoy Interrupts . | . . . . . . . Stealth | -11 -10 -10 -10 -9 -8 -8 --------- Run | Yrd Mat Min Exi Min Mat Gar Distress Signals 1 | . . . . . 1 . Communications Jammed . | . . . . . . . Distress Signals . | . . . . . . . Times Spotted 52 | . 11 9 . . 28 4 Peak Tracking Total 9 | . 7 3 . . 9 3 Tactical Retreats 3 | . . 1 . . 2 . Traps | -11 -10 -10 -10 -9 -8 -8 ------- Run | Yrd Mat Min Exi Min Mat Gar Traps Triggered 11 | . 2 . . . 1 8 Indirectly . | . . . . . . . Trap Hack Attempts . | . . . . . . . Triggered . | . . . . . . . Disarmed . | . . . . . . . Reprogrammed . | . . . . . . . Reused . | . . . . . . . Traps Extracted . | . . . . . . . Installed . | . . . . . . . Triggered . | . . . . . . . Machines | -11 -10 -10 -10 -9 -8 -8 ---------- Run | Yrd Mat Min Exi Min Mat Gar Machines Disabled 5 | . . 3 . . 1 1 Max in Single Turn 2 | . . 2 . . 1 1 Garrison Relay 1 | . . . . . . 1 Machines Repaired . | . . . . . . . Machines Dismantled . | . . . . . . . Machines Sabotaged . | . . . . . . . Overloaded Fab Kills . | . . . . . . . Hacking | -11 -10 -10 -10 -9 -8 -8 --------- Run | Yrd Mat Min Exi Min Mat Gar Machines Accessed 6 | . 2 . 1 . 2 1 Terminals 4 | . 2 . . . 1 1 Fabricators . | . . . . . . . Repair Stations . | . . . . . . . Recycling Units . | . . . . . . . Scanalyzers . | . . . . . . . Garrison Access 1 | . . . . . 1 . Total Hacks 8 | . 2 . 1 . 4 1 Successful 5 | . 2 . 1 . 1 1 Failed 3 | . . . . . 3 . Catastrophic . | . . . . . . . Database Lockouts . | . . . . . . . Manual 1 | . . . 1 . . . Terminals 6 | . 2 . . . 3 1 Fabricators . | . . . . . . . Repair Stations . | . . . . . . . Recycling Units . | . . . . . . . Scanalyzers . | . . . . . . . Garrison Access 1 | . . . . . 1 . Terminal Hacks 4 | . 2 . 1 . . 1 Prototype ID Bank 2 | . 2 . . . . . Emergency Access Points 1 | . . . . . . 1 Proto ID Catalog 1 | . . . 1 . . . Fabricator Hacks . | . . . . . . . Repair Station Hacks . | . . . . . . . Recycling Unit Hacks . | . . . . . . . Scanalyzer . | . . . . . . . Garrison Access Hacks 1 | . . . . . 1 . Unlock Access 1 | . . . . . 1 . Unauthorized Hacks . | . . . . . . . Terminals . | . . . . . . . Fabricators . | . . . . . . . Repair Stations . | . . . . . . . Recycling Units . | . . . . . . . Scanalyzers . | . . . . . . . Garrison Access . | . . . . . . . Data Cores Recovered . | . . . . . . . Used . | . . . . . . . Hacking Detections 3 | . 1 . . . 1 1 Full Trace Events 1 | . . . . . 1 . Feedback Events . | . . . . . . . Feedback Blocked . | . . . . . . . Robot Schematics Acquired . | . . . . . . . Robots Built . | . . . . . . . Authchips . | . . . . . . . Time . | . . . . . . . Total Robot Build Rating . | . . . . . . . Part Schematics Acquired . | . . . . . . . Parts Built . | . . . . . . . Authchips . | . . . . . . . Time . | . . . . . . . Total Part Build Rating . | . . . . . . . Part Studies Acquired . | . . . . . . . Parts Repaired . | . . . . . . . Time . | . . . . . . . Parts Recycled . | . . . . . . . Recycled Matter . | . . . . . . . Retrieved Matter . | . . . . . . . Retrieved Components . | . . . . . . . Parts Scanalyzed . | . . . . . . . Part Schematics Acquired . | . . . . . . . Parts Damaged . | . . . . . . . Bothacking | -11 -10 -10 -10 -9 -8 -8 ------------ Run | Yrd Mat Min Exi Min Mat Gar Used RIF Installer . | . . . . . . . Robots Hacked . | . . . . . . . Non-combat . | . . . . . . . Combat . | . . . . . . . Robot Hacks Applied . | . . . . . . . Relay Couplers Released 3 | . . . . . . 3 Machine Destruction 3 | . . . . . . 3 Fabnet Peak Effective % . | . . . . . . . Robots Rewired 6 | . . . . . . 6 Allies Hacked . | . . . . . . . Hacks Repelled . | . . . . . . . Allies | -11 -10 -10 -10 -9 -8 -8 -------- Run | Yrd Mat Min Exi Min Mat Gar Total Allies 7 | . . 1 . . . 6 Largest Group 6 | . . 1 . . . 6 Highest-Rated Group 57 | . . 31 . . . 57 Highest-Rated Ally 31 | . . 31 . . . 14 Total Orders . | . . . . . . . Ally Attacks 1 | . . 1 . . . . Total Damage 22 | . . 22 . . . . Kills . | . . . . . . . Allies Corrupted . | . . . . . . . Allies Melted . | . . . . . . . Intel | -11 -10 -10 -10 -9 -8 -8 ------- Run | Yrd Mat Min Exi Min Mat Gar Active Infowar (turns) . | . . . . . . . Robot Analysis Total . | . . . . . . . Derelict Logs Recovered . | . . . . . . . Drone Launches . | . . . . . . . Drone Recoveries . | . . . . . . . Exploration | -11 -10 -10 -10 -9 -8 -8 ------------- Run | Yrd Mat Min Exi Min Mat Gar Turns Passed 1736 | 55 116 308 216 156 539 346 Spaces Moved 1166 | 36 60 305 212 98 255 200 Core 483 | 10 . 217 113 . 132 11 Treads 491 | 26 60 88 99 98 120 . Legs . | . . . . . . . Wheels . | . . . . . . . Hover . | . . . . . . . Flight 192 | . . . . . 3 189 Fastest Speed 35 | 50 160 50 50 160 50 35 Average Speed 107 | 129 160 81 101 160 152 48 Slowest Speed 500 | 160 160 160 160 160 500 115 Overloaded Moves . | . . . . . . . Propulsion Burnouts . | . . . . . . . Robots Hopped . | . . . . . . . Potential Cave-ins . | . . . . . . . Cave-ins Triggered . | . . . . . . . Exploration Rate (%) 35 | 3 27 74 60 30 25 26 Regions Visited 6 Branch Regions 3 Pre-discovered Areas 1 | . . 1 . . . . Known Exits Taken 1 | . . . . . 1 . Unknown Exits Taken 5 | 1 1 1 1 1 . . Scrap Searched 2 | . . 2 . . . . Spaces Dug 7 | . . . . . 7 . Terrain Destroyed 166 | . 17 65 . . 84 . Melee . | . . . . . . . Projectile . | . . . . . . . AOE 166 | . 17 65 . . 84 . Terrain Rammed . | . . . . . . . Walls Destroyed . | . . . . . . . Machines Disabled . | . . . . . . . Actions | -11 -10 -10 -10 -9 -8 -8 --------- Run | Yrd Mat Min Exi Min Mat Gar Total 1557 | 44 72 353 214 97 349 428 Wait 85 | . . 35 . . 28 22 Move 1161 | 35 59 304 211 97 255 200 Hop . | . . . . . . . Pick Up 10 | 4 1 2 1 . 1 1 Fast Attach 18 | . . . . . 14 4 Attach 9 | 4 1 1 1 . 1 1 Detach 4 | . 1 1 . . 1 1 Swap 1 | . . . . . . 1 Drop 11 | . . 1 1 . 7 2 Fire 80 | 1 10 9 . . 42 18 Melee . | . . . . . . . Ram . | . . . . . . . Kick . | . . . . . . . Crush . | . . . . . . . Escape Stasis 105 | . . . . . . 105 Rewire 73 | . . . . . . 73 Trap . | . . . . . . . Miscellaneous . | . . . . . . . Route ------- -11/Scrapyard -10/Materials -10/Mines (discovered 3 exits: [*Mat x2] / *Exi) -10/Exiles -9/Mines -8/Materials -8/Garrison History --------- Turn | Location | Event 3 | -11/Scrapyard | Discovered new exit (range 15) 56 | -11/Scrapyard | Entered Materials 159 | -10/Materials | Discovered new exit (range 9) 172 | -10/Materials | Entered Mines 182 | -10/Mines | Escorted by a lone wolf Derelict 209 | -10/Mines | Learned location of Storage (-8) 216 | -10/Mines | Core integrity fell below 50% 265 | -10/Mines | Assembled infested the area 307 | -10/Mines | Build established: Mutant 314 | -10/Mines | Discovered new exit (range 9) 337 | -10/Mines | Core integrity fell below 20% 361 | -10/Mines | Discovered new exit (range 11) 442 | -10/Mines | Found a hidden stash of uninstalled traps 461 | -10/Mines | Received a Rocket Launcher from a helpful Derelict 478 | -10/Mines | Deemed a non-threat by the Exiles lab entrance 478 | -10/Mines | Discovered new exit (range 5) 480 | -10/Mines | Entered Exiles 493 | -10/Exiles | Met 8R-AWN 502 | -10/Exiles | Met EX-HEX 516 | -10/Exiles | Met EX-BIN 522 | -10/Exiles | Aligned with FarCom system 523 | -10/Exiles | Given EX-Vault access code 534 | -10/Exiles | Opened EX-Vault 539 | -10/Exiles | Found XL Autogun Array 571 | -10/Exiles | Warned to stay clear of 0b10 Research branches 624 | -10/Exiles | Met EX-DEC 679 | -10/Exiles | Discovered new exit (range 14) 696 | -10/Exiles | Left Exiles lab with XL Autogun Array 696 | -10/Exiles | Entered Mines 832 | -9/Mines | Discovered new exit (range 12) 852 | -9/Mines | Entered Materials 852 | -8/Materials | Evolved 4 slots: Propulsion x2, Utility x2 1322 | -8/Materials | Garrison activated, responded to threat 1332 | -8/Materials | Core integrity fell below 50% 1333 | -8/Materials | Destroyed 7 combat bots 1390 | -8/Materials | Core integrity fell below 20% 1391 | -8/Materials | Identified exit to Garrison 1391 | -8/Materials | Entered Garrison 1403 | -8/Garrison | Lost 3 parts (3w) 1569 | -8/Garrison | Triggered checkpoint 1610 | -8/Garrison | Garrison Relay disabled 1737 | -8/Garrison | Destroyed by Fusion Bomb Trap Last Messages --------------- unit. Connecting with Garrison Terminal... >>Access(Emergency) Found 50 emergency access points. Map updated. W-25 Informer springs to life. Attempting to rewire E-15 Imp. E-15 Imp rewired. Attempting to rewire E-15 Imp. E-15 Imp rewired. Attempting to rewire E-15 Imp. E-15 Imp rewired. Attempting to rewire S-10 Pest. S-10 Pest rewired. Attempting to rewire S-10 Pest. S-10 Pest rewired. Attempting to rewire S-10 Pest. S-10 Pest rewired. Triggered Fusion Bomb Trap. An explosion rips through the floor. Map ----- +----------------------------------------------------+ | ????????????# ###T#### #?# " | | ????????????+ #?# "" | | ????????????# #?#"!!!!!!""" | | ????????????# ??# ## ###########?#"""""""""" | | ????????????# ## ## #???????????########### | | ??????????+?" "?????????????????????? | | ????????????" "?????????????????????? | | ????????????" "?????????????????????? | | ????????????" "C+???????????????????? | | ????????????# ## ## #?????????????????????? | | ????????????# ## ## #?????????????????????? | | ????????????+ #?????????????????????? | | ????????????# #?????????????????????? | | ????????????# #?????????????????????? | | ????????????## ##""""## ##?????????????????????? | | ?????????????# ??ssss?# #??????????????????????? | | ?????????????# ?????#+?# #??????????????????????? | | ???+?????????+??????# ## #?????????????????????+? | | ????????????????????# ; +?????????????????????+? | | ????????????????????#### #?????????????????+???+? | | ???????????????????????# #?????????????????????+? | | ????????+??????????????# #####+##???????+??????+? | | ???????????????????????# #??????sss??????? | | ???????????????????????# #???????????????? | | ????????+??????????????##/##### ????????? | | ????????????????????????#@#???????#####+++++?????? | | ??????????????????????### ###????????????????????? | | ??????????????????????# s #????????????????????? | | ??????????????????????# se #????????????????????? | | ?+????????????????????#es #????????????+???????? | | ??????????????????????### ###????????????????????? | | ????????????????????????###??????????????????????? | | ?????????????????????????????????????????????????? | | ???????????????????????????????+?????????????????? | | ?????????????????????????????????????????????????? | | ?????????????????????????????????????????????????? | | ?????????????????????????????????????????????????? | | ?????????????????????????????????????????????????? | | ?????????????????????????????????????????????????? | | ?????????????????????????????????????????????????? | | ?????????????????????????????????????????????????? | | ?????????????????????????????????????????????????? | | ?????????????????????????????????????????????????? | | ?????????+???????????????????????????????????????? | | ?????????????????????????????????????????????????? | | ?????????????????????????????????????????????????? | | ?????????????????????????????????????????????????? | | ?????????????????????????????????????????????????? | | ?????????????????????????????????????????????????? | | ?????????????????????????????????????????????????? | +----------------------------------------------------+ Best States ------------- Heat Dissipation 31 Energy Generation 16 Energy Capacity 290 Matter Stores 300 Matter Capacity 300 Sight Range 16 Terrain Scan Density 10 Armor Coverage 600 Evasion (%) 63 Recoil Reduction 2 Authchip Count 4 Item Schematics ----------------- None Robot Schematics ------------------ None Fabricated ------------ Nothing Repaired ---------- Nothing Studied --------- None Alien Tech Used ----------------- None Achievements -------------- None Challenges ------------ None Game ------ Seed TargetingBeamTurbovents Manual? 0 Play Time 00:15:54 Cumulative 262.0 hours Start 2026.04.11 @ 19:33:13 End 2026.04.11 @ 19:48:01 Sessions 1 Manual Loads 0 Difficulty Rogue Special Mode None Game No. 699 Rogue 697 Adventurer 2 Explorer 0 Win Type - Total 0 Types 0/0/0/0/0/0/0/0/0/0 Lore% 67 Gallery% 63 Achievement% 43 Wizard Run 0 Options --------- Layout 2 ASCII 0 Keyboard 0 Movement Mouse Keybinds 0 Fullscreen 1 Font 24/Smallcaps Map View 50x44 Zoom Use 0% Tactical HUD 0 Map Filters NONE Filters NONE Steam 1 RUN: 7fbcb2b5-ac20-404e-8ade-8b2bdccc89b2